fUST/lending_fUST_20240705
["ID","MTS","AMOUNT","RATE_DAILY","PERIOD"]
[331198375,1720131053831,-1176.18,0.0001452,2]
[331198376,1720131053840,-500.0,0.0001452,2]
[331198377,1720131053850,-500.0,0.0001452,2]
[331198378,1720131053859,-589.91,0.0001452,2]
[331198379,1720131053868,-537.72207548,0.0001452,2]
[331198380,1720131053878,-500.0,0.0001452,2]
[331198381,1720131053887,-500.0,0.0001452,2]
[331198382,1720131053896,-500.0,0.0001452,2]
[331198383,1720131053905,-627.87,0.0001452,2]
[331198384,1720131053915,-500.0,0.0001452,2]
[331198385,1720131053924,-500.0,0.0001452,2]
[331198386,1720131053933,-505.47,0.0001452,2]
[331198387,1720131053942,-500.0,0.0001452,2]
[331198388,1720131053951,-500.0,0.0001452,2]
[331198389,1720131053960,-500.0,0.0001452,2]
[331198390,1720131053970,-500.0,0.0001452,2]
[331198391,1720131053979,-500.0,0.0001452,2]
[331198392,1720131053988,-500.0,0.0001452,2]
[331198393,1720131053997,-1037.96328928,0.00014784,2]
[331198394,1720131054007,-2799.19,0.00014793,2]
[331198395,1720131054016,-2799.19,0.00014793,2]
[331198396,1720131054114,-2799.19,0.00014793,2]
[331198397,1720131054124,-2799.19,0.00014793,2]
[331198398,1720131054133,-2799.19,0.00014793,2]
[331198399,1720131054143,-2799.38,0.00014793,2]
[331198400,1720131054152,-9614.54817379,0.00014794,2]
[331198401,1720131054163,-500.0,0.00014794,2]
[331198402,1720131054172,-500.0,0.00014794,2]
[331198403,1720131054182,-500.0,0.00014794,2]
[331198404,1720131054191,-500.0,0.00014794,2]
[331198405,1720131054201,-500.0,0.00014794,2]
[331198406,1720131054210,-500.0,0.00014794,2]
[331198407,1720131054219,-500.0,0.00014794,2]
[331198408,1720131054228,-500.0,0.00014794,2]
[331198409,1720131054237,-500.0,0.00014794,2]
[331198410,1720131054248,-500.0,0.00014794,2]
[331198411,1720131054257,-500.0,0.00014794,2]
[331198412,1720131054266,-500.0,0.00014794,2]
[331198413,1720131054275,-500.0,0.00014794,2]
[331198414,1720131054284,-500.0,0.00014794,2]
[331198415,1720131054294,-500.0,0.00014794,2]
[331198416,1720131054303,-500.0,0.00014794,2]
[331198417,1720131054312,-500.0,0.00014794,2]
[331198418,1720131054321,-3742.14,0.00014794,2]
[331198419,1720131054330,-500.0,0.00014794,2]
[331198420,1720131054339,-500.0,0.00014794,2]
[331198421,1720131054348,-500.0,0.00014794,2]
[331198422,1720131054357,-500.0,0.00014794,2]
[331198423,1720131054366,-826.72,0.00014794,2]
[331198424,1720131054376,-500.0,0.00014794,2]
[331198425,1720131054385,-500.0,0.00014794,2]
[331198426,1720131054395,-500.0,0.00014794,2]
[331198427,1720131054404,-193.91698171,0.00014794,2]
[331198428,1720131054414,-500.0,0.00014794,2]
[331198429,1720131054424,-394.077144,0.00014794,2]
[331198430,1720131054434,-514.34,0.00014794,2]
[331198431,1720131054443,-524.48,0.00014794,2]
[331198432,1720131054453,-500.0,0.00014794,2]
[331198433,1720131054462,-500.0,0.00014794,2]
[331198434,1720131054472,-500.0,0.00014794,2]
[331198435,1720131054482,-500.0,0.00014794,2]
[331198436,1720131054491,-500.0,0.00014794,2]
[331198437,1720131054500,-500.0,0.00014794,2]
[331198438,1720131054510,-500.0,0.00014794,2]
[331198439,1720131054519,-500.0,0.00014794,2]
[331198440,1720131054528,-500.0,0.00014794,2]
[331198441,1720131054538,-570.11,0.00014794,2]
[331198442,1720131054547,-500.0,0.00014794,2]
[331198443,1720131054558,-500.0,0.00014794,2]
[331198444,1720131054570,-500.0,0.00014794,2]
[331198445,1720131054579,-500.0,0.00014794,2]
[331198446,1720131054588,-500.0,0.00014794,2]
[331198447,1720131054599,-500.0,0.00014794,2]
[331198448,1720131054608,-500.0,0.00014794,2]
[331198449,1720131054618,-500.0,0.00014794,2]
[331198450,1720131054627,-500.0,0.00014794,2]
[331198451,1720131054637,-500.0,0.00014794,2]
[331198452,1720131054648,-500.0,0.00014794,2]
[331198453,1720131054658,-501.06,0.00014794,2]
[331198454,1720131054668,-607.62,0.00014794,2]
[331198455,1720131054677,-500.0,0.00014794,2]
[331198456,1720131054686,-500.0,0.00014794,2]
[331198457,1720131054696,-500.0,0.00014794,2]
[331198458,1720131054705,-682.73,0.00014794,2]
[331198459,1720131054716,-500.0,0.00014794,2]
[331198460,1720131054726,-500.0,0.00014794,2]
[331198461,1720131054735,-500.0,0.00014794,2]
[331198462,1720131054745,-500.0,0.00014794,2]
[331198463,1720131054754,-500.0,0.00014794,2]
[331198464,1720131054764,-500.0,0.00014794,2]
[331198465,1720131054774,-500.0,0.00014794,2]
[331198466,1720131054785,-500.0,0.00014794,2]
[331198467,1720131054796,-931.89,0.00014794,2]
[331198468,1720131054806,-500.0,0.00014794,2]
[331198469,1720131054816,-500.0,0.00014794,2]
[331198470,1720131054827,-500.0,0.00014794,2]
[331198471,1720131054837,-500.0,0.00014794,2]
[331198472,1720131054847,-500.0,0.00014794,2]
[331198473,1720131054857,-500.0,0.00014794,2]
[331198474,1720131054867,-500.0,0.00014794,2]
[331198475,1720131054876,-500.0,0.00014794,2]
[331198476,1720131054886,-500.0,0.00014794,2]
[331198477,1720131054895,-500.0,0.00014794,2]
[331198478,1720131054905,-500.0,0.00014794,2]
[331198479,1720131054915,-500.0,0.00014794,2]
[331198480,1720131054925,-759.56,0.00014794,2]
[331198481,1720131054935,-585.89,0.00014794,2]
[331198482,1720131054945,-500.0,0.00014794,2]
[331198483,1720131054955,-950.69,0.00014794,2]
[331198484,1720131054964,-5834.67,0.00014794,2]
[331198485,1720131054974,-500.0,0.00014794,2]
[331198486,1720131054983,-500.0,0.00014794,2]
[331198487,1720131054993,-500.0,0.00014794,2]
[331198488,1720131055003,-513.98,0.00014794,2]
[331198489,1720131055012,-1516.42,0.00014794,2]
[331198490,1720131055022,-500.0,0.00014794,2]
[331198491,1720131055031,-315.45,0.00014794,2]
[331198492,1720131055043,-500.0,0.00014794,2]
[331198493,1720131055052,-1825.45,0.00014794,2]
[331198494,1720131055062,-500.0,0.00014794,2]
[331198495,1720131055071,-500.0,0.00014794,2]
[331198496,1720131055081,-924.89,0.00014794,2]
[331198497,1720131055090,-500.0,0.00014794,2]
[331198498,1720131055100,-500.0,0.00014794,2]
[331198499,1720131055110,-779.87,0.00014794,2]
[331198500,1720131055120,-500.0,0.00014794,2]
[331198501,1720131055130,-500.0,0.00014794,2]
[331198502,1720131055140,-500.0,0.00014794,2]
[331198503,1720131055149,-500.0,0.00014794,2]
[331198504,1720131055159,-500.0,0.00014794,2]
[331198505,1720131055169,-500.0,0.00014794,2]
[331198506,1720131055178,-500.0,0.00014794,2]
[331198507,1720131055188,-500.0,0.00014794,2]
[331198508,1720131055197,-2492.25,0.00014794,2]
[331198509,1720131055208,-509.34,0.00014794,2]
[331198510,1720131055219,-500.0,0.00014794,2]
[331198511,1720131055229,-500.0,0.00014794,2]
[331198512,1720131055240,-500.0,0.00014794,2]
[331198513,1720131055250,-500.0,0.00014794,2]
[331198514,1720131055260,-500.0,0.00014794,2]
[331198515,1720131055271,-522.59023114,0.00014794,2]
[331198516,1720131055280,-500.0,0.00014794,2]
[331198517,1720131055290,-500.0,0.00014794,2]
[331198518,1720131055300,-500.0,0.00014794,2]
[331198519,1720131055310,-500.0,0.00014794,2]
[331198520,1720131055320,-500.0,0.00014794,2]
[331198521,1720131055330,-500.0,0.00014794,2]
[331198522,1720131055340,-6168.59,0.00014794,2]
[331198523,1720131055350,-9700.15,0.00014794,2]
[331198524,1720131055359,-1937.12,0.00014794,2]
[331198525,1720131055369,-500.0,0.00014794,2]
[331198526,1720131055378,-5164.08,0.00014794,2]
[331198527,1720131055387,-500.0,0.00014794,2]
[331198528,1720131055397,-5289.2,0.00014794,2]
[331198529,1720131055407,-500.0,0.00014794,2]
[331198530,1720131055417,-615.21,0.00014794,2]
[331198531,1720131055426,-500.0,0.00014794,2]
[331198532,1720131055436,-561.48,0.00014794,2]
[331198533,1720131055446,-2984.32,0.00014794,2]
[331198534,1720131055455,-500.0,0.00014794,2]
[331198535,1720131055464,-500.0,0.00014794,2]
[331198536,1720131055474,-500.0,0.00014794,2]
[331198537,1720131055484,-1522.35,0.00014794,2]
[331198538,1720131055494,-500.0,0.00014794,2]
[331198539,1720131055503,-500.0,0.00014794,2]
[331198540,1720131055514,-500.0,0.00014794,2]
[331198541,1720131055523,-500.0,0.00014794,2]
[331198542,1720131055532,-500.0,0.00014794,2]
[331198543,1720131055542,-824.18,0.00014794,2]
[331198544,1720131055551,-500.0,0.00014794,2]
[331198545,1720131055564,-500.0,0.00014794,2]
[331198546,1720131055574,-2503.16,0.00014794,2]
[331198547,1720131055584,-500.0,0.00014794,2]
[331198548,1720131055594,-4032.35,0.00014794,2]
[331198549,1720131055604,-1573.06,0.00014794,2]
[331198550,1720131055614,-733.85,0.00014794,2]
[331198551,1720131055624,-500.0,0.00014794,2]
[331198552,1720131055634,-500.0,0.00014794,2]
[331198553,1720131055644,-500.0,0.00014794,2]
[331198554,1720131055654,-500.0,0.00014794,2]
[331198555,1720131055663,-500.0,0.00014794,2]
[331198556,1720131055673,-500.0,0.00014794,2]
[331198557,1720131055683,-500.0,0.00014794,2]
[331198558,1720131055692,-500.0,0.00014794,2]
[331198559,1720131055702,-1176.18,0.00014794,2]
[331198560,1720131055711,-500.0,0.00014794,2]
[331198561,1720131055720,-500.0,0.00014794,2]
[331198562,1720131055729,-589.91,0.00014794,2]
[331198563,1720131055739,-500.0,0.00014794,2]
[331198564,1720131055748,-500.0,0.00014794,2]
[331198565,1720131055758,-627.87,0.00014794,2]
[331198566,1720131055767,-500.0,0.00014794,2]
[331198567,1720131055776,-500.0,0.00014794,2]
[331198568,1720131055786,-505.47,0.00014794,2]
[331198569,1720131055796,-500.0,0.00014794,2]
[331198570,1720131055805,-500.0,0.00014794,2]
[331198571,1720131055815,-500.0,0.00014794,2]
[331198572,1720131055824,-500.0,0.00014794,2]
[331198573,1720131055834,-500.0,0.00014794,2]
[331198574,1720131055843,-500.0,0.00014794,2]
[331198575,1720131055853,-193.95387146,0.000149,2]
[331198576,1720131055862,-193.95387146,0.000149,2]
[331198577,1720131055871,-193.95387146,0.000149,2]
[331198578,1720131055881,-150.0,0.00014908,2]
[331198579,1720131055890,-150.0,0.0001499,2]
[331198580,1720131055900,-11029.28750384,0.00014998,2]
[331198581,1720131055909,-6076.9012323,0.00014998,2]
[331198582,1720131055919,-3078.51196359,0.00014999,2]
[331198583,1720131055928,-1500.0,0.00014999,2]
[331198584,1720131055938,-24358.75421305,0.00014999,2]
[331198585,1720131055947,-8120.90107703,0.00014999,2]
[331198586,1720131055966,-24983.42429709,0.00014999,2]
[331198587,1720131055976,-1582.36208647,0.00014999,2]
[331198589,1720131058420,-500.0,0.0001452,2]
[331198590,1720131058430,-500.0,0.00014794,2]
[331198591,1720131058439,-79464.65563875,0.00014999,2]
[331198592,1720131058448,-4710.72024946,0.00014999,2]
[331198593,1720131058458,-1104.60661146,0.00015,2]
[331198594,1720131058468,-948.84245203,0.00015,2]
[331198595,1720131058478,-519.16591691,0.00015,2]
[331198596,1720131058487,-504.30890535,0.00015068,2]
[331198597,1720131058498,-500.0,0.00015068,2]
[331198598,1720131058507,-320.25,0.00015068,2]
[331198599,1720131058517,-500.0,0.00015068,2]
[331198600,1720131058527,-500.0,0.00015068,2]
[331198601,1720131058537,-500.0,0.00015068,2]
[331198602,1720131058547,-500.0,0.00015068,2]
[331198603,1720131058557,-500.0,0.00015068,2]
[331198604,1720131058572,-500.0,0.00015068,2]
[331198605,1720131058582,-3742.14,0.00015068,2]
[331198606,1720131058592,-500.0,0.00015068,2]
[331198607,1720131058602,-500.0,0.00015068,2]
[331198608,1720131058611,-826.72,0.00015068,2]
[331198609,1720131058620,-500.0,0.00015068,2]
[331198610,1720131058630,-500.0,0.00015068,2]
[331198611,1720131058642,-500.0,0.00015068,2]
[331198612,1720131058652,-500.0,0.00015068,2]
[331198613,1720131058662,-524.48,0.00015068,2]
[331198614,1720131058672,-262.33,0.00015068,2]
[331198615,1720131058683,-500.0,0.00015068,2]
[331198616,1720131058692,-500.0,0.00015068,2]
[331198617,1720131058704,-500.0,0.00015068,2]
[331198618,1720131058713,-500.0,0.00015068,2]
[331198619,1720131058723,-500.0,0.00015068,2]
[331198620,1720131058733,-500.0,0.00015068,2]
[331198621,1720131058742,-500.0,0.00015068,2]
[331198622,1720131058753,-500.0,0.00015068,2]
[331198623,1720131058763,-500.0,0.00015068,2]
[331198624,1720131058773,-294.3,0.00015068,2]
[331198625,1720131058782,-500.0,0.00015068,2]
[331198626,1720131058792,-620.006378,0.00015068,2]
[331198627,1720131058802,-296.89334191,0.00015068,2]
[331198628,1720131058812,-500.0,0.00015068,2]
[331198629,1720131058822,-178.61289237,0.00015068,2]
[331198630,1720131058831,-501.06,0.00015068,2]
[331198631,1720131058840,-500.0,0.00015068,2]
[331198632,1720131058850,-682.73,0.00015068,2]
[331198633,1720131058859,-500.0,0.00015068,2]
[331198634,1720131058868,-500.0,0.00015068,2]
[331198635,1720131058877,-500.0,0.00015068,2]
[331198636,1720131058888,-500.0,0.00015068,2]
[331198637,1720131058898,-500.0,0.00015068,2]
[331198638,1720131058909,-500.0,0.00015068,2]
[331198639,1720131058918,-500.0,0.00015068,2]
[331198640,1720131058927,-931.89,0.00015068,2]
[331198641,1720131058937,-500.0,0.00015068,2]
[331198642,1720131058947,-553.73501593,0.00015068,2]
[331198643,1720131058958,-500.0,0.00015068,2]
[331198644,1720131058969,-500.0,0.00015068,2]
[331198645,1720131058978,-155.85,0.00015068,2]
[331198646,1720131058987,-500.0,0.00015068,2]
[331198647,1720131058996,-500.0,0.00015068,2]
[331198648,1720131059006,-500.0,0.00015068,2]
[331198649,1720131059015,-153.16,0.00015068,2]
[331198650,1720131059024,-759.56,0.00015068,2]
[331198651,1720131059034,-585.89,0.00015068,2]
[331198652,1720131059044,-950.69,0.00015068,2]
[331198653,1720131059052,-5834.67,0.00015068,2]
[331198654,1720131059061,-500.0,0.00015068,2]
[331198655,1720131059071,-500.0,0.00015068,2]
[331198656,1720131059081,-513.98,0.00015068,2]
[331198657,1720131059092,-1516.42,0.00015068,2]
[331198658,1720131059102,-500.0,0.00015068,2]
[331198659,1720131059112,-500.0,0.00015068,2]
[331198660,1720131059122,-1825.45,0.00015068,2]
[331198661,1720131059131,-500.0,0.00015068,2]
[331198662,1720131059140,-924.89,0.00015068,2]
[331198663,1720131059149,-500.0,0.00015068,2]
[331198664,1720131059158,-779.87,0.00015068,2]
[331198665,1720131059168,-500.0,0.00015068,2]
[331198666,1720131059178,-364.92,0.00015068,2]
[331198667,1720131059187,-500.0,0.00015068,2]
[331198668,1720131059197,-500.0,0.00015068,2]
[331198669,1720131059206,-500.0,0.00015068,2]
[331198670,1720131059215,-500.0,0.00015068,2]
[331198671,1720131059224,-2492.25,0.00015068,2]
[331198672,1720131059233,-509.34,0.00015068,2]
[331198673,1720131059242,-500.0,0.00015068,2]
[331198674,1720131059251,-618.59507928,0.00015068,2]
[331198675,1720131059260,-500.0,0.00015068,2]
[331198676,1720131059269,-500.0,0.00015068,2]
[331198677,1720131059278,-500.0,0.00015068,2]
[331198678,1720131059287,-500.0,0.00015068,2]
[331198679,1720131059296,-500.0,0.00015068,2]
[331198680,1720131059305,-500.0,0.00015068,2]
[331198681,1720131059314,-500.0,0.00015068,2]
[331198682,1720131059323,-500.0,0.00015068,2]
[331198683,1720131059332,-500.0,0.00015068,2]
[331198684,1720131059342,-9700.15,0.00015068,2]
[331198685,1720131059351,-6168.59,0.00015068,2]
[331198686,1720131059360,-5164.08,0.00015068,2]
[331198687,1720131059369,-1937.12,0.00015068,2]
[331198688,1720131059378,-500.0,0.00015068,2]
[331198689,1720131059387,-5289.2,0.00015068,2]
[331198690,1720131059396,-500.0,0.00015068,2]
[331198691,1720131059405,-615.21,0.00015068,2]
[331198692,1720131059414,-500.0,0.00015068,2]
[331198693,1720131059424,-561.48,0.00015068,2]
[331198694,1720131059433,-500.0,0.00015068,2]
[331198695,1720131059443,-2984.32,0.00015068,2]
[331198696,1720131059452,-500.0,0.00015068,2]
[331198697,1720131059461,-500.0,0.00015068,2]
[331198698,1720131059470,-1522.35,0.00015068,2]
[331198699,1720131059482,-284.07,0.00015068,2]
[331198700,1720131059492,-500.0,0.00015068,2]
[331198701,1720131059501,-500.0,0.00015068,2]
[331198702,1720131059510,-500.0,0.00015068,2]
[331198703,1720131059519,-824.18,0.00015068,2]
[331198704,1720131059528,-500.0,0.00015068,2]
[331198705,1720131059537,-500.0,0.00015068,2]
[331198706,1720131059547,-2503.16,0.00015068,2]
[331198707,1720131059558,-4032.35,0.00015068,2]
[331198708,1720131059569,-1573.06,0.00015068,2]
[331198709,1720131059578,-733.85,0.00015068,2]
[331198710,1720131059587,-500.0,0.00015068,2]
[331198711,1720131059596,-500.0,0.00015068,2]
[331198712,1720131059605,-500.0,0.00015068,2]
[331198713,1720131059614,-500.0,0.00015068,2]
[331198714,1720131059624,-500.0,0.00015068,2]
[331198715,1720131059634,-500.0,0.00015068,2]
[331198716,1720131059643,-1176.18,0.00015068,2]
[331198717,1720131059652,-500.0,0.00015068,2]
[331198718,1720131059662,-589.91,0.00015068,2]
[331198719,1720131059672,-500.0,0.00015068,2]
[331198720,1720131059680,-627.87,0.00015068,2]
[331198721,1720131059689,-500.0,0.00015068,2]
[331198722,1720131059698,-500.0,0.00015068,2]
[331198723,1720131059789,-505.47,0.00015068,2]
[331198724,1720131059799,-500.0,0.00015068,2]
[331198725,1720131059808,-500.0,0.00015068,2]
[331198726,1720131059818,-500.0,0.00015068,2]
[331198727,1720131059827,-500.0,0.00015068,2]
[331198728,1720131059836,-500.0,0.00015068,2]
[331198729,1720131059846,-877.001,0.00015126,2]
[331198730,1720131059855,-153.0,0.0001519,2]
[331198731,1720131059864,-186.615069,0.00015273,2]
[331198732,1720131059873,-174.096832,0.00015273,2]
[331198733,1720131059882,-500.0,0.00015342,2]
[331198734,1720131059892,-500.0,0.00015342,2]
[331198735,1720131059901,-500.0,0.00015342,2]
[331198736,1720131059910,-500.0,0.00015342,2]
[331198737,1720131059919,-3742.14,0.00015342,2]
[331198738,1720131059928,-826.72,0.00015342,2]
[331198739,1720131059937,-500.0,0.00015342,2]
[331198740,1720131059946,-524.48,0.00015342,2]
[331198741,1720131059955,-500.0,0.00015342,2]
[331198742,1720131059964,-500.0,0.00015342,2]
[331198743,1720131059973,-500.0,0.00015342,2]
[331198744,1720131059982,-500.0,0.00015342,2]
[331198745,1720131059991,-510.18471171,0.00015342,2]
[331198746,1720131060000,-501.06,0.00015342,2]
[331198747,1720131060009,-234.74,0.00015342,2]
[331198748,1720131060018,-682.73,0.00015342,2]
[331198749,1720131060027,-500.0,0.00015342,2]
[331198750,1720131060037,-500.0,0.00015342,2]
[331198751,1720131060046,-500.0,0.00015342,2]
[331198752,1720131060055,-500.0,0.00015342,2]
[331198753,1720131060064,-500.0,0.00015342,2]
[331198754,1720131060074,-931.89,0.00015342,2]
[331198755,1720131060082,-500.0,0.00015342,2]
[331198756,1720131060092,-610.69,0.00015342,2]
[331198757,1720131060101,-234.74,0.00015342,2]
[331198758,1720131060111,-759.56,0.00015342,2]
[331198759,1720131060119,-585.89,0.00015342,2]
[331198760,1720131060131,-950.69,0.00015342,2]
[331198761,1720131060141,-5834.67,0.00015342,2]
[331198762,1720131060150,-500.0,0.00015342,2]
[331198763,1720131060160,-614.7,0.00015342,2]
[331198764,1720131060170,-513.98,0.00015342,2]
[331198765,1720131060180,-1516.42,0.00015342,2]
[331198766,1720131060189,-500.0,0.00015342,2]
[331198767,1720131060199,-500.0,0.00015342,2]
[331198768,1720131060208,-1825.45,0.00015342,2]
[331198769,1720131060218,-500.0,0.00015342,2]
[331198770,1720131060227,-924.89,0.00015342,2]
[331198771,1720131060235,-500.0,0.00015342,2]
[331198772,1720131060245,-779.87,0.00015342,2]
[331198773,1720131060255,-500.0,0.00015342,2]
[331198774,1720131060264,-500.0,0.00015342,2]
[331198775,1720131060273,-500.0,0.00015342,2]
[331198776,1720131060283,-500.0,0.00015342,2]
[331198777,1720131060292,-2492.25,0.00015342,2]
[331198778,1720131060301,-509.34,0.00015342,2]
[331198779,1720131060310,-500.0,0.00015342,2]
[331198780,1720131060319,-500.0,0.00015342,2]
[331198781,1720131060328,-500.0,0.00015342,2]
[331198782,1720131060337,-340.86,0.00015342,2]
[331198783,1720131060346,-500.0,0.00015342,2]
[331198784,1720131060355,-641.69,0.00015342,2]
[331198785,1720131060364,-500.0,0.00015342,2]
[331198786,1720131060374,-500.0,0.00015342,2]
[331198787,1720131060383,-9700.15,0.00015342,2]
[331198788,1720131060392,-6168.59,0.00015342,2]
[331198789,1720131060401,-5164.08,0.00015342,2]
[331198790,1720131060411,-1937.12,0.00015342,2]
[331198791,1720131060420,-516.24,0.00015342,2]
[331198792,1720131060430,-5289.2,0.00015342,2]
[331198793,1720131060439,-500.0,0.00015342,2]
[331198794,1720131060448,-615.21,0.00015342,2]
[331198795,1720131060457,-500.0,0.00015342,2]
[331198796,1720131060466,-561.48,0.00015342,2]
[331198797,1720131060476,-413.32146119,0.00015342,2]
[331198798,1720131060485,-2984.32,0.00015342,2]
[331198799,1720131060494,-500.0,0.00015342,2]
[331198800,1720131060504,-1522.35,0.00015342,2]
[331198801,1720131060514,-500.0,0.00015342,2]
[331198802,1720131060523,-500.0,0.00015342,2]
[331198803,1720131060533,-646.41,0.00015342,2]
[331198804,1720131060543,-824.18,0.00015342,2]
[331198805,1720131060553,-500.0,0.00015342,2]
[331198806,1720131060563,-2503.16,0.00015342,2]
[331198807,1720131060574,-4032.35,0.00015342,2]
[331198808,1720131060583,-1573.06,0.00015342,2]
[331198809,1720131060592,-733.85,0.00015342,2]
[331198810,1720131060603,-500.0,0.00015342,2]
[331198811,1720131060614,-468.45,0.00015342,2]
[331198812,1720131060623,-500.0,0.00015342,2]
[331198813,1720131060632,-500.0,0.00015342,2]
[331198814,1720131060643,-500.0,0.00015342,2]
[331198815,1720131060652,-500.0,0.00015342,2]
[331198816,1720131060661,-1176.18,0.00015342,2]
[331198817,1720131060671,-500.0,0.00015342,2]
[331198818,1720131060680,-589.91,0.00015342,2]
[331198819,1720131060690,-627.87,0.00015342,2]
[331198820,1720131060700,-500.0,0.00015342,2]
[331198821,1720131060710,-500.0,0.00015342,2]
[331198822,1720131060721,-505.47,0.00015342,2]
[331198823,1720131060731,-500.0,0.00015342,2]
[331198824,1720131060742,-500.0,0.00015342,2]
[331198825,1720131060751,-500.0,0.00015342,2]
[331198826,1720131060761,-500.0,0.00015342,2]
[331198827,1720131060771,-164.371,0.00015414,2]
[331198828,1720131060780,-150.0,0.00015414,2]
[331198829,1720131060790,-150.0,0.00015414,2]
[331198830,1720131060799,-250.0,0.00015456,2]
[331198831,1720131060809,-174.096832,0.00015464,2]
[331198832,1720131060818,-186.615069,0.00015527,2]
[331198833,1720131060827,-500.0,0.00015616,2]
[331198834,1720131060836,-500.0,0.00015616,2]
[331198835,1720131060846,-3742.14,0.00015616,2]
[331198836,1720131060855,-319.47,0.00015616,2]
[331198837,1720131060864,-826.72,0.00015616,2]
[331198838,1720131060873,-524.48,0.00015616,2]
[331198839,1720131060882,-500.0,0.00015616,2]
[331198840,1720131060892,-500.0,0.00015616,2]
[331198841,1720131060901,-283.6,0.00015616,2]
[331198842,1720131060910,-501.06,0.00015616,2]
[331198843,1720131060920,-682.73,0.00015616,2]
[331198844,1720131060929,-500.0,0.00015616,2]
[331198845,1720131060940,-500.0,0.00015616,2]
[331198846,1720131060950,-500.0,0.00015616,2]
[331198847,1720131060960,-500.0,0.00015616,2]
[331198848,1720131060970,-931.89,0.00015616,2]
[331198849,1720131060979,-500.0,0.00015616,2]
[331198850,1720131060988,-759.56,0.00015616,2]
[331198851,1720131060998,-585.89,0.00015616,2]
[331198852,1720131061007,-950.69,0.00015616,2]
[331198853,1720131061017,-5834.67,0.00015616,2]
[331198854,1720131061029,-534.56,0.00015616,2]
[331198855,1720131061039,-513.98,0.00015616,2]
[331198856,1720131061047,-1516.42,0.00015616,2]
[331198857,1720131061056,-500.0,0.00015616,2]
[331198858,1720131061065,-1825.45,0.00015616,2]
[331198859,1720131061074,-500.0,0.00015616,2]
[331198860,1720131061083,-924.89,0.00015616,2]
[331198861,1720131061093,-500.0,0.00015616,2]
[331198862,1720131061104,-779.87,0.00015616,2]
[331198863,1720131061113,-500.0,0.00015616,2]
[331198864,1720131061124,-454.61,0.00015616,2]
[331198865,1720131061133,-500.0,0.00015616,2]
[331198866,1720131061143,-2492.25,0.00015616,2]
[331198867,1720131061152,-509.34,0.00015616,2]
[331198868,1720131061161,-500.0,0.00015616,2]
[331198869,1720131061170,-500.0,0.00015616,2]
[331198870,1720131061179,-241.23847525,0.00015616,2]
[331198871,1720131061188,-204.24,0.00015616,2]
[331198872,1720131061197,-500.0,0.00015616,2]
[331198873,1720131061207,-9700.15,0.00015616,2]
[331198874,1720131061287,-6168.59,0.00015616,2]
[331198875,1720131061296,-5164.08,0.00015616,2]